bitfinex-derivatives/quotes_BTCF0:USTF0_20210102
["timestamp","ask_amount","ask_price","bid_price","bid_amount"]
[1609547525387,0.0004184,29088.0,29074.0,1.0]
[1609547525589,0.18084998,29088.0,29087.0,0.18043158]
[1609547526690,0.18084998,29088.0,29087.0,0.17243158]
[1609547530699,0.0004184,29088.0,29065.0,3.9465]
[1609547531201,0.0004184,29088.0,29066.0,0.00034533]
[1609547531601,0.18084998,29088.0,29087.0,0.18043158]
[1609547534502,0.18043158,29088.0,29087.0,0.18043158]
[1609547538909,0.14467,29089.0,29087.0,0.18043158]
[1609547539109,0.14067,29089.0,29087.0,0.18043158]
[1609547539307,0.02,29096.0,29088.0,4.7462]
[1609547539507,0.02,29096.0,29088.0,4.74654522]
[1609547539709,0.54911674,29102.0,29095.0,0.18043158]
[1609547539907,0.54911674,29102.0,29098.0,0.5923]
[1609547540608,0.54911674,29102.0,29099.0,0.00034514]
[1609547541411,0.16707894,29105.0,29099.0,0.00034514]
[1609547541611,0.16707894,29105.0,29104.0,0.18043158]
[1609547541811,0.15694,29105.0,29104.0,0.18043158]
[1609547544409,1.15694,29105.0,29104.0,0.18043158]
[1609547544610,0.15694,29105.0,29104.0,0.18043158]
[1609547544813,1.15694,29105.0,29104.0,0.18043158]
[1609547545711,1.33737158,29105.0,29104.0,0.18043158]
[1609547546713,0.33737158,29105.0,29104.0,0.18043158]
[1609547547014,0.15694,29105.0,29104.0,0.18043158]
[1609547547715,0.15694,29105.0,29104.0,0.18077669]
[1609547550718,0.15694,29105.0,29104.0,1.18077669]
[1609547552823,0.15694,29105.0,29104.0,0.18077669]
[1609547567443,0.15694,29105.0,29104.0,0.21222844]
[1609547567745,0.15694,29105.0,29104.0,0.18077669]
[1609547568145,0.15485229,29105.0,29104.0,0.18077669]
[1609547568345,0.15485229,29105.0,29104.0,0.21222576]
[1609547568746,0.04006387,29119.0,29104.0,0.21222576]
[1609547569145,0.000418,29118.0,29109.0,4.4941]
[1609547569545,0.137488,29118.0,29109.0,4.4941]
[1609547569745,0.137488,29118.0,29117.0,0.18043158]
[1609547569944,0.13707,29118.0,29117.0,0.94053158]
[1609547570144,0.13748798,29118.0,29117.0,0.94088247]
[1609547570446,0.13707,29118.0,29117.0,0.94088247]
[1609547574549,0.01030396,29124.0,29117.0,0.94088247]
[1609547574950,0.00041794,29123.0,29118.0,0.00035085]
[1609547575349,0.12625794,29123.0,29118.0,0.00035085]
[1609547575750,0.00041794,29122.0,29118.0,0.00035085]
[1609547575950,0.12584,29123.0,29118.0,0.00035085]
[1609547577752,0.12584,29123.0,29122.0,0.18043158]
[1609547578158,0.12584,29123.0,29122.0,0.18078236]
[1609547578753,0.12584,29123.0,29122.0,0.87918236]
[1609547580357,0.01031614,29131.0,29122.0,0.87918236]
[1609547580756,0.01031614,29131.0,29123.0,0.00035075]
[1609547581155,0.29844521,29137.0,29123.0,0.00035075]
[1609547581554,0.00041784,29136.0,29123.0,0.00035075]
[1609547581754,0.12573784,29136.0,29123.0,0.00035075]
[1609547581955,0.12573784,29136.0,29135.0,0.18043158]
[1609547583957,0.30616942,29136.0,29135.0,0.18043158]
[1609547584957,0.30575158,29136.0,29135.0,0.18043158]
[1609547587361,0.12532,29136.0,29122.0,4.6802]
[1609547587760,1.0,29136.0,29122.0,4.6802]
[1609547587960,1.10699,29136.0,29132.0,0.18043158]
[1609547588160,0.00041786,29135.0,29132.0,0.18043158]
[1609547588361,0.00041786,29135.0,29122.0,4.6802]
[1609547589965,0.18043158,29123.0,29122.0,4.86063158]
[1609547590164,0.33730158,29123.0,29122.0,4.86063158]
[1609547590565,0.15687,29123.0,29122.0,4.86063158]
[1609547591566,0.15687,29123.0,29122.0,4.86098225]
[1609547591767,0.15478321,29123.0,29122.0,4.86063158]
[1609547592165,0.15478321,29123.0,29122.0,4.86098226]
[1609547595167,0.18043158,29129.0,29122.0,4.86098226]
[1609547595568,0.18043158,29129.0,29123.0,0.00035071]
[1609547595967,0.18043158,29129.0,29128.0,0.18043158]
[1609547596369,0.18043158,29129.0,29128.0,0.18078229]
[1609547596969,0.18084942,29129.0,29128.0,0.18043158]
[1609547597773,0.18043158,29129.0,29128.0,0.18043158]
[1609547597973,0.18043158,29129.0,29128.0,0.18078235]
[1609547598873,0.10699,29136.0,29128.0,0.18078235]
[1609547599075,0.2881,29137.0,29128.0,0.18078235]
[1609547599275,0.00041783,29135.0,29129.0,0.00035077]
[1609547599476,0.15135,29135.0,29129.0,0.00035077]
[1609547599774,0.0004178,29134.0,29129.0,0.00035077]
[1609547599975,0.0004178,29134.0,29131.0,0.18043158]
[1609547600374,0.0004178,29134.0,29132.0,0.00035074]
[1609547600774,0.15135,29135.0,29132.0,0.00035074]
[1609547601975,0.15135,29135.0,29134.0,0.18043158]
[1609547603979,0.33178158,29135.0,29134.0,0.18043158]
[1609547605279,0.33178158,29135.0,29134.0,0.18078223]
[1609547605783,0.33219929,29135.0,29134.0,0.18078223]
[1609547606381,0.33178158,29135.0,29134.0,0.18078223]
[1609547606582,0.1517677,29135.0,29134.0,0.18078223]
[1609547606785,0.1517677,29135.0,29134.0,1.77308223]
[1609547606983,0.15135,29135.0,29134.0,1.77308223]
[1609547607183,0.2881,29137.0,29134.0,1.77308223]
[1609547607585,0.01453813,29145.0,29134.0,1.77308223]
[1609547607784,0.00041769,29136.0,29135.0,0.00035062]
[1609547607985,0.14382,29136.0,29135.0,0.00035062]
[1609547608786,0.14382,29136.0,29135.0,1.00035062]
[1609547610887,0.14382,29136.0,29135.0,0.00035062]
[1609547611688,0.14423772,29136.0,29135.0,0.00035062]
[1609547612089,1.14423772,29136.0,29135.0,0.00035062]
[1609547612288,1.3246693,29136.0,29135.0,0.00035062]
[1609547612489,1.3246693,29136.0,29126.0,0.18043158]
[1609547613089,0.00041777,29135.0,29127.0,0.00035281]
[1609547614291,0.18043158,29128.0,29127.0,0.00035281]
[1609547614493,0.34834158,29128.0,29127.0,0.00035281]
[1609547614893,1.34875938,29128.0,29127.0,0.00035281]
[1609547615693,1.34834158,29128.0,29127.0,0.00035281]
[1609547615892,1.33104158,29128.0,29127.0,0.00035281]
[1609547617598,2.33104158,29128.0,29127.0,0.00035281]
[1609547618196,1.33104158,29128.0,29127.0,0.00035281]
[1609547618396,2.33104158,29128.0,29127.0,0.00035281]
[1609547618898,1.33104158,29128.0,29127.0,0.00035281]
[1609547619298,6.38705941,29128.0,29112.0,1.39813961]
[1609547619800,0.0004179,29127.0,29113.0,0.00035288]
[1609547620302,0.18043158,29114.0,29113.0,0.00035288]
[1609547620501,0.18043158,29114.0,29111.0,0.18043158]
[1609547620701,0.29374158,29114.0,29113.0,0.0003529]
[1609547620901,1.29374158,29114.0,29112.0,0.0003529]
[1609547621100,1.29374158,29114.0,29113.0,0.0003529]
[1609547621301,1.2916541,29114.0,29113.0,0.0003529]
[1609547621503,1.2916541,29114.0,29112.0,0.0003529]
[1609547621701,1.2916541,29114.0,29113.0,0.00035293]
[1609547622200,1.2916541,29114.0,29112.0,0.00035293]
[1609547622501,1.2916541,29114.0,29113.0,0.00035293]
[1609547622803,0.2916541,29114.0,29113.0,0.00035293]
[1609547623002,0.2916541,29114.0,29112.0,0.00035291]
[1609547623202,0.2916541,29114.0,29113.0,0.00035291]
[1609547623502,0.2916541,29114.0,29112.0,0.00035291]
[1609547623804,0.2916541,29114.0,29113.0,0.00035291]
[1609547624303,0.2916541,29114.0,29112.0,0.00035291]
[1609547624603,0.2916541,29114.0,29113.0,0.00035291]
[1609547625204,0.2916541,29114.0,29112.0,0.00035291]
[1609547625406,0.2916541,29114.0,29113.0,0.00035291]
[1609547625904,0.2916541,29114.0,29112.0,0.00035291]
[1609547626104,0.2916541,29114.0,29113.0,0.00035291]
[1609547626508,0.2916541,29114.0,29112.0,0.00035289]
[1609547626707,0.2916541,29114.0,29113.0,0.00035289]
[1609547627206,0.2916541,29114.0,29112.0,0.00035289]
[1609547627607,0.2916541,29114.0,29113.0,0.00035287]
[1609547628007,0.2916541,29114.0,29112.0,0.00035287]
[1609547628306,0.2916541,29114.0,29113.0,0.00035287]
[1609547628906,0.2916541,29114.0,29112.0,0.00035287]
[1609547629105,0.2916541,29114.0,29111.0,0.18043158]
[1609547629106,0.2916541,29114.0,29113.0,0.00035287]
[1609547629308,0.11331,29114.0,29113.0,0.10355287]
[1609547629506,1.0,29117.0,29113.0,5.51695287]
[1609547629906,1.0,29117.0,29114.0,0.00035282]
[1609547630509,1.0,29117.0,29116.0,0.18043158]
[1609547630709,0.18043158,29126.0,29116.0,0.18043158]
[1609547630908,0.18043158,29126.0,29116.0,0.18078438]
[1609547631207,0.18043158,29126.0,29117.0,0.0003528]
[1609547632410,0.18043158,29126.0,29125.0,0.18043158]
[1609547632911,0.18043158,29126.0,29125.0,0.18078436]
[1609547636019,0.16791,29128.0,29125.0,0.18078436]
[1609547636217,1.0,29130.0,29125.0,0.18078436]
[1609547636418,1.0,29130.0,29128.0,0.18043158]
[1609547636818,1.0,29131.0,29128.0,0.18043158]
[1609547637620,1.0,29131.0,29129.0,0.00035273]
[1609547638420,1.18043158,29131.0,29129.0,0.00035273]
[1609547638723,0.18043158,29131.0,29129.0,0.00035273]
[1609547639322,1.18043158,29131.0,29129.0,0.00035273]
[1609547639926,0.18043158,29131.0,29129.0,0.00035273]
[1609547640729,1.0,29130.0,29129.0,0.00035273]
[1609547640927,1.13584,29130.0,29129.0,0.00035273]
[1609547644833,0.13584,29130.0,29129.0,0.00035273]
[1609547646135,0.18043158,29131.0,29129.0,0.00035273]
[1609547646334,0.14788,29130.0,29129.0,0.00035273]
[1609547651236,0.18043158,29131.0,29129.0,0.00035273]
[1609547651437,0.15942,29130.0,29129.0,0.00035273]
[1609547656441,0.18043158,29131.0,29129.0,0.00035273]
[1609547656643,0.13046,29130.0,29129.0,0.00035273]
[1609547657044,0.31089158,29130.0,29128.0,0.18043158]
[1609547657443,0.31089158,29130.0,29129.0,0.00035267]
[1609547659850,1.31089158,29130.0,29129.0,0.00035267]
[1609547660048,6.53439158,29130.0,29129.0,0.00035267]
[1609547660248,6.53480935,29130.0,29121.0,0.00035271]
[1609547660448,6.53480935,29130.0,29129.0,0.00035271]
[1609547660749,1.0,29122.0,29121.0,0.00035276]
[1609547660950,1.12812,29122.0,29121.0,0.00035276]
[1609547661149,1.12812,29122.0,29120.0,1.82620434]
[1609547661348,0.18043158,29121.0,29120.0,1.82620434]
[1609547661949,0.18043158,29121.0,29120.0,1.82655715]
[1609547662150,0.18043158,29121.0,29120.0,0.00035281]
[1609547662550,0.18043158,29121.0,29118.0,0.00035281]
[1609547662749,1.18043158,29121.0,29118.0,0.00035281]
[1609547663654,1.17834451,29121.0,29118.0,0.00035281]
[1609547664254,1.17834451,29121.0,29116.0,0.00035281]
[1609547664454,1.17834451,29121.0,29119.0,0.00035281]
[1609547664854,0.17834451,29121.0,29117.0,0.00035281]
[1609547665054,0.17834451,29121.0,29120.0,0.00035281]
[1609547665254,0.17834451,29121.0,29118.0,0.00035283]
[1609547665455,0.17834451,29121.0,29115.0,0.18043158]
[1609547665456,0.17834451,29121.0,29120.0,0.00035283]
[1609547665754,0.17834451,29121.0,29116.0,0.00035283]
[1609547665954,0.17834451,29121.0,29115.0,0.18043158]
[1609547666155,0.17834451,29121.0,29120.0,0.00035283]
[1609547666355,0.17834451,29121.0,29116.0,0.00035283]
[1609547666556,0.17834451,29121.0,29120.0,0.00035284]
[1609547666856,0.17834451,29121.0,29117.0,0.00035284]
[1609547667256,0.18043158,29118.0,29117.0,0.00035284]
[1609547667458,0.18043158,29118.0,29115.0,0.18043158]
[1609547667656,0.18043158,29118.0,29117.0,0.00035285]
[1609547667958,0.18043158,29118.0,29116.0,0.00035285]
[1609547668157,0.18043158,29118.0,29117.0,0.00035285]
[1609547668557,0.17043158,29118.0,29117.0,0.00035285]
[1609547668757,1.17043158,29118.0,29116.0,0.00035285]
[1609547668958,1.17043158,29118.0,29117.0,0.00035285]
[1609547669462,1.17043158,29118.0,29116.0,0.00035285]
[1609547669760,1.17043158,29118.0,29117.0,0.00035327]
[1609547670260,1.17043158,29118.0,29116.0,0.00035327]
[1609547670459,1.17043158,29118.0,29117.0,0.00035327]
[1609547670761,0.17043158,29118.0,29116.0,0.00035327]
[1609547671162,0.17043158,29118.0,29117.0,0.00035327]
[1609547671662,0.17043158,29118.0,29116.0,0.00035327]
[1609547671863,0.17043158,29118.0,29117.0,0.00035327]
[1609547672063,0.17043158,29118.0,29117.0,0.00035326]
[1609547672463,0.17043158,29118.0,29116.0,0.00035326]
[1609547672665,0.17043158,29118.0,29117.0,0.00035326]
[1609547673163,0.17043158,29118.0,29116.0,0.00035326]
[1609547673362,0.17043158,29118.0,29117.0,0.00035326]
[1609547673662,0.17043158,29118.0,29116.0,0.00035326]
[1609547673962,0.17043158,29118.0,29117.0,0.00035326]
[1609547674562,0.17043158,29118.0,29116.0,0.00035326]
[1609547674763,0.17043158,29118.0,29117.0,0.00035326]
[1609547675265,0.17043158,29118.0,29116.0,0.00035326]
[1609547675563,0.17043158,29118.0,29117.0,0.00035326]
[1609547676063,0.17043158,29118.0,29116.0,0.00035326]
[1609547676266,0.17043158,29118.0,29117.0,0.00035324]
[1609547676565,0.17043158,29118.0,29116.0,0.00035324]
[1609547676966,0.17043158,29118.0,29117.0,0.00035324]
[1609547677367,0.17043158,29118.0,29116.0,0.00035324]
[1609547677667,0.17043158,29118.0,29117.0,0.00035324]
[1609547678268,0.17043158,29118.0,29116.0,0.00035324]
[1609547678468,0.17043158,29118.0,29117.0,0.00035324]
[1609547678968,0.17043158,29118.0,29116.0,0.00035324]
[1609547679169,0.17043158,29118.0,29117.0,0.00035324]
[1609547679569,0.17043158,29118.0,29116.0,0.00035324]
[1609547679768,0.17043158,29118.0,29117.0,0.00035324]
[1609547680269,0.17043158,29118.0,29116.0,0.00035324]
[1609547680470,0.17043158,29118.0,29117.0,0.00035324]
[1609547680771,0.17043158,29118.0,29116.0,0.00035324]
[1609547681071,0.17043158,29118.0,29117.0,0.00035324]
[1609547681673,0.17043158,29118.0,29116.0,0.00035324]
[1609547681873,0.17043158,29118.0,29117.0,0.00035324]
[1609547682371,0.17043158,29118.0,29116.0,0.00035324]
[1609547682772,0.17043158,29118.0,29117.0,0.00035324]
[1609547683171,0.17043158,29118.0,29116.0,0.00035324]
[1609547683472,0.17043158,29118.0,29117.0,0.00035324]
[1609547683971,0.17043158,29118.0,29116.0,0.00035324]
[1609547684171,0.17043158,29118.0,29117.0,0.00035324]
[1609547684472,0.17043158,29118.0,29116.0,0.00035324]
[1609547684772,0.17043158,29118.0,29117.0,0.00035324]
[1609547685271,0.02965352,29116.0,29115.0,0.18043158]
[1609547685672,0.17007352,29116.0,29115.0,0.18043158]
[1609547685871,0.17007352,29116.0,29115.0,0.18078479]
[1609547688475,0.17007352,29116.0,29115.0,0.21333112]
[1609547690577,0.17007352,29116.0,29115.0,0.21333113]
[1609547693583,0.1679863,29116.0,29115.0,0.21333113]
[1609547711718,0.1679863,29116.0,29115.0,5.68903113]
[1609547712718,0.1679863,29116.0,29115.0,5.75484444]
[1609547713119,0.1679863,29116.0,29115.0,6.75484444]
[1609547713518,0.16589982,29116.0,29115.0,6.75484444]
[1609547714120,0.16589982,29116.0,29115.0,9.04003513]
[1609547714320,0.12812,29122.0,29115.0,12.94563376]
[1609547714521,1.0,29123.0,29115.0,12.94563376]
[1609547714819,1.0,29123.0,29121.0,1.0]
[1609547715018,1.0,29123.0,29122.0,0.8233]
[1609547715319,1.0,29123.0,29122.0,0.92198134]
[1609547715620,1.0,29123.0,29122.0,1.10241292]
[1609547716220,0.794,29123.0,29122.0,2.10241292]
[1609547716422,0.794,29123.0,29122.0,2.03661997]
[1609547716624,0.794,29123.0,29122.0,8.22263293]
[1609547718426,0.577,29123.0,29122.0,8.22263293]
[1609547718826,0.577,29123.0,29122.0,14.1900976]
[1609547719428,0.577,29123.0,29122.0,13.1900976]
[1609547720829,0.577,29123.0,29122.0,8.1900976]
[1609547721232,0.577,29123.0,29122.0,5.90667]
[1609547723032,0.36840841,29123.0,29122.0,5.90667]
[1609547723635,0.36632249,29123.0,29122.0,5.90667]
[1609547724834,0.36632249,29123.0,29122.0,4.90667]
[1609547726837,0.36632249,29123.0,29122.0,5.90667]
[1609547728739,0.13046,29130.0,29122.0,5.90667]
[1609547728941,0.13046,29130.0,29122.0,4.90667]
[1609547729140,0.18043158,29135.0,29122.0,4.90667]
[1609547729340,0.18043158,29135.0,29123.0,0.00035301]
[1609547729740,0.18043158,29135.0,29134.0,0.18043158]
[1609547731543,5.15093158,29135.0,29134.0,0.18043158]
[1609547731743,5.15093158,29135.0,29124.0,1.81986233]
[1609547731942,5.6242,29126.0,29124.0,1.81986233]
[1609547732142,5.7611,29126.0,29124.0,1.81986233]
[1609547732443,5.7611,29126.0,29118.0,1.81990902]
[1609547732942,5.7611,29126.0,29119.0,0.00035226]
[1609547733645,0.18043158,29120.0,29119.0,0.00035226]
[1609547733842,0.34390158,29120.0,29118.0,0.18043158]
[1609547734345,0.34390158,29120.0,29119.0,0.0003523]
[1609547734846,0.34390158,29120.0,29118.0,0.18043158]
[1609547735446,5.1903,29119.0,29118.0,0.18043158]
[1609547736548,5.1903,29119.0,29118.0,0.18078395]
[1609547736749,5.1903,29119.0,29118.0,0.18043158]
[1609547737848,0.34390158,29120.0,29118.0,0.18043158]
[1609547740954,0.34390158,29120.0,29119.0,5.5548]
[1609547741753,0.34390158,29120.0,29118.0,0.18043158]
[1609547741953,0.16347,29120.0,29119.0,5.0569]
[1609547742153,1.0,29125.0,29119.0,5.0569]
[1609547742353,1.0,29125.0,29119.0,0.00035233]
[1609547742553,1.0,29125.0,29124.0,5.0496]
[1609547742754,1.0,29125.0,29120.0,0.00035233]
[1609547742953,5.6471,29124.0,29123.0,1.0]
[1609547743756,5.82753158,29124.0,29123.0,1.0]
[1609547743955,0.18043158,29124.0,29123.0,1.0]
[1609547744554,0.18043158,29124.0,29123.0,1.0003523]
[1609547746060,0.17834504,29124.0,29123.0,1.0003523]
[1609547748961,0.1369,29126.0,29123.0,1.7832523]
[1609547749163,0.0052,29133.0,29123.0,1.7832523]
[1609547749363,0.0052,29133.0,29124.0,0.00035224]
[1609547749661,0.0052,29133.0,29126.0,4.8732]
[1609547749961,0.0052,29133.0,29131.0,0.18043158]
[1609547750364,0.0052,29133.0,29132.0,0.00035224]
[1609547751967,0.18563158,29133.0,29132.0,0.00035224]
[1609547758475,0.18563158,29133.0,29131.0,0.17043174]
[1609547759476,0.7623,29132.0,29131.0,0.17043174]
[1609547759878,0.7623,29132.0,29131.0,0.17078396]
[1609547760277,0.782,29132.0,29131.0,0.17078396]
[1609547766392,0.0197,29132.0,29131.0,0.17078396]
[1609547766589,0.0197,29132.0,29131.0,5.08848396]
[1609547766992,0.0197,29132.0,29131.0,6.08848396]
[1609547767790,0.0197,29132.0,29131.0,1.17078396]
[1609547767990,0.0197,29132.0,29131.0,5.70898396]
[1609547769097,0.0197,29132.0,29131.0,1.17078396]
[1609547769691,0.01761401,29132.0,29131.0,1.17078396]
[1609547770195,0.01761401,29132.0,29131.0,1.03249682]
[1609547770394,0.01761401,29132.0,29131.0,1.00035222]
[1609547770792,0.01761401,29132.0,29131.0,1.21292882]
[1609547770992,0.01761401,29132.0,29131.0,0.1807838]
[1609547772798,0.01761401,29132.0,29131.0,1.1807838]
[1609547774902,0.01761401,29132.0,29131.0,0.1807838]
[1609547776803,0.01761401,29132.0,29131.0,1.1807838]
[1609547777606,0.01761401,29132.0,29131.0,6.7964838]
[1609547778704,0.01761401,29132.0,29131.0,6.82863012]
[1609547779807,0.01761401,29132.0,29131.0,1.21293012]
[1609547780810,0.01761401,29132.0,29131.0,0.21293012]
[1609547781013,0.01761401,29132.0,29131.0,0.1807838]
[1609547784113,0.01761401,29132.0,29131.0,0.00035222]
[1609547784612,0.01761401,29132.0,29128.0,0.03250157]
[1609547785014,0.01761401,29132.0,29131.0,0.1807838]
[1609547785214,0.01761401,29132.0,29131.0,0.18043158]
[1609547785414,0.01761401,29132.0,29131.0,0.1807838]
[1609547785615,0.01552778,29132.0,29131.0,0.1807838]
[1609547786214,0.01552778,29132.0,29131.0,0.21293556]
[1609547791020,3.89222778,29132.0,29131.0,0.21293556]
[1609547792024,0.01552778,29132.0,29131.0,0.21293556]
[1609547793626,0.01552778,29132.0,29131.0,0.1807838]
[1609547794126,0.01552778,29132.0,29131.0,0.2130206]
[1609547794626,0.01552778,29132.0,29131.0,0.1807838]
[1609547795627,0.01344138,29132.0,29131.0,0.1807838]
[1609547801232,0.01344138,29132.0,29131.0,0.21302174]
[1609547801733,0.01344138,29132.0,29131.0,0.1807838]
[1609547802536,0.01344138,29132.0,29131.0,0.21302026]
[1609547803440,5.22524138,29132.0,29131.0,0.1807838]
[1609547803938,5.22565918,29132.0,29131.0,0.00035222]
[1609547804340,5.22565918,29132.0,29126.0,0.00035251]
[1609547804740,5.22565918,29132.0,29131.0,0.00035251]
[1609547804942,0.00041784,29131.0,29127.0,0.00035251]
[1609547805141,0.18043158,29128.0,29123.0,0.21267604]
[1609547805343,0.28938158,29128.0,29123.0,0.21267604]
[1609547805543,0.28938158,29128.0,29123.0,0.18043158]
[1609547805744,0.28938158,29128.0,29124.0,0.00035252]
[1609547807144,0.18043158,29125.0,29124.0,0.00035252]
[1609547810148,0.18043158,29125.0,29123.0,0.18043158]
[1609547810351,0.18043158,29125.0,29124.0,0.00035252]
[1609547810748,0.18043158,29125.0,29124.0,0.00070504]
[1609547818357,0.17834493,29125.0,29124.0,0.00070504]
[1609547818958,0.10895,29128.0,29124.0,0.00070504]
[1609547819156,0.10895,29128.0,29127.0,0.18043158]
[1609547819356,0.18043158,29129.0,29127.0,0.18043158]
[1609547819556,0.18043158,29129.0,29127.0,0.18078405]
[1609547819857,0.18043158,29129.0,29128.0,0.55445247]
[1609547820858,0.18043158,29129.0,29128.0,1.55445247]
[1609547824862,0.18043158,29129.0,29128.0,0.55445247]
[1609547826063,0.31213158,29129.0,29128.0,0.55445247]
[1609547826767,0.31213158,29129.0,29128.0,0.58668564]
[1609547828868,0.31213158,29129.0,29128.0,1.58668564]
[1609547830167,0.31004535,29129.0,29128.0,1.58668564]
[1609547830669,0.1317,29129.0,29128.0,1.58668564]
[1609547831368,0.01344138,29132.0,29128.0,1.58668564]
[1609547831768,0.01344138,29132.0,29129.0,0.03258557]
[1609547832472,0.01344138,29132.0,29131.0,0.18043158]
[1609547832871,0.01344138,29132.0,29131.0,1.18043158]
[1609547833074,0.01344138,29132.0,29131.0,1.21301715]
[1609547833771,0.01344138,29132.0,29131.0,1.18078398]
[1609547837575,0.01344138,29132.0,29131.0,2.18078398]
[1609547837976,0.01344138,29132.0,29131.0,2.21301006]
[1609547838777,0.01344138,29132.0,29131.0,1.21301006]
[1609547839976,0.01344138,29132.0,29131.0,2.21301006]
[1609547840879,0.01344138,29132.0,29131.0,1.21301006]
[1609547841079,0.01344138,29132.0,29131.0,0.21301006]
[1609547841682,0.01135555,29132.0,29131.0,0.21301006]
[1609547842884,0.01135555,29132.0,29131.0,1.21301006]
[1609547843084,0.01135555,29132.0,29131.0,1.18078398]
[1609547844884,0.01135555,29132.0,29131.0,0.18078398]
[1609547845085,0.01135555,29132.0,29131.0,0.90268398]
[1609547849597,0.01135555,29132.0,29131.0,0.93491398]
[1609547849997,0.01135555,29132.0,29131.0,0.21301398]
[1609547850198,4.47355555,29132.0,29131.0,0.21301398]
[1609547850396,4.47355555,29132.0,29131.0,0.18078398]
[1609547850597,5.47355555,29132.0,29131.0,0.04588398]
[1609547850798,5.65398713,29132.0,29131.0,0.0003524]
[1609547850997,6.65398713,29132.0,29128.0,0.18043158]
[1609547851198,6.65440494,29132.0,29128.0,0.16423158]
[1609547851398,0.00041781,29131.0,29129.0,0.00035328]
[1609547851899,0.00041781,29131.0,29127.0,0.00035328]
[1609547852300,0.00041781,29131.0,29130.0,0.0003533]
[1609547852502,0.00041781,29131.0,29128.0,0.0003533]
[1609547852700,0.00041781,29131.0,29130.0,0.0003533]
[1609547853102,0.00041781,29131.0,29129.0,0.0003533]
[1609547853301,0.00041781,29131.0,29130.0,0.0003533]
[1609547853903,0.00041781,29131.0,29120.0,0.03295453]
[1609547854100,0.00041781,29131.0,29130.0,0.00035332]
[1609547854301,0.00041781,29131.0,29121.0,0.00035332]
[1609547854602,0.00041781,29131.0,29130.0,0.00035332]
[1609547854801,0.18084939,29131.0,29123.0,0.18043158]
[1609547855001,0.18084939,29131.0,29125.0,5.6918]
[1609547855202,0.18043158,29131.0,29130.0,0.00035327]
[1609547855404,0.18043158,29131.0,29125.0,5.6918]
[1609547855405,0.19538883,29131.0,29126.0,0.00035324]
[1609547855606,0.19538883,29131.0,29130.0,0.00035324]
[1609547856003,0.19538883,29131.0,29127.0,0.00035322]
[1609547856204,0.19538883,29131.0,29130.0,0.00035322]
[1609547856405,0.19538883,29131.0,29128.0,0.00035322]
[1609547856705,0.19538883,29131.0,29130.0,0.00035322]
[1609547856906,0.18043158,29131.0,29129.0,1.00035322]
[1609547857207,0.18043158,29131.0,29130.0,0.00035322]
[1609547859611,0.18043158,29131.0,29129.0,0.00035322]
[1609547859814,0.18043158,29131.0,29130.0,0.00035322]
[1609547860314,0.18043158,29131.0,29129.0,0.00035322]
[1609547860615,0.18043158,29131.0,29130.0,0.00035322]
[1609547861116,0.18043158,29131.0,29129.0,1.00035322]
[1609547861517,0.18043158,29131.0,29130.0,0.00035322]
[1609547863320,0.18043158,29131.0,29129.0,0.00035322]
[1609547863519,0.18043158,29131.0,29130.0,0.00035322]
[1609547864020,4.27863158,29131.0,29129.0,0.00035322]
[1609547864221,4.27863158,29131.0,29130.0,0.00035322]
[1609547864520,4.27863158,29131.0,29129.0,0.00035324]
[1609547864821,4.27863158,29131.0,29130.0,0.00035324]
[1609547865321,0.18043158,29131.0,29129.0,0.00035324]
[1609547865621,0.18043158,29131.0,29130.0,0.00035324]
[1609547866123,0.18043158,29131.0,29129.0,0.00035324]
[1609547866525,0.18043158,29131.0,29130.0,0.00035324]
[1609547866925,0.18043158,29131.0,29129.0,0.00035324]
[1609547867125,0.18043158,29131.0,29130.0,0.00035324]
[1609547867527,0.18043158,29131.0,29129.0,0.00035324]
[1609547867726,0.18043158,29131.0,29130.0,0.00035324]
[1609547868227,0.18043158,29131.0,29129.0,0.00035324]
[1609547868527,0.18043158,29131.0,29130.0,0.00035324]
[1609547869029,0.18043158,29131.0,29129.0,0.00035324]
[1609547869228,0.18043158,29131.0,29130.0,0.00035324]
[1609547869528,0.18043158,29131.0,29129.0,0.00035324]
[1609547869931,0.18043158,29131.0,29130.0,0.00035324]
[1609547870332,0.18043158,29131.0,29129.0,0.00035324]
[1609547870630,0.18043158,29131.0,29130.0,0.00035324]
[1609547871231,0.18043158,29131.0,29129.0,0.00035324]
[1609547871432,0.18043158,29131.0,29130.0,0.00035324]
[1609547871933,0.18043158,29131.0,29129.0,0.00035324]
[1609547872133,0.18043158,29131.0,29130.0,0.00035324]
[1609547872432,0.18043158,29131.0,29129.0,0.00035324]
[1609547872733,0.18043158,29131.0,29130.0,0.00035324]
[1609547873236,0.18043158,29131.0,29129.0,0.00035324]
[1609547873435,0.18043158,29131.0,29130.0,0.00035324]
[1609547873735,0.18043158,29131.0,29129.0,0.00035324]
[1609547874136,0.18043158,29131.0,29130.0,0.00035324]
[1609547874637,0.18043158,29131.0,29129.0,0.00035324]
[1609547874837,0.18043158,29131.0,29130.0,0.00035324]
[1609547875037,0.99673158,29131.0,29130.0,0.00035324]
[1609547875441,0.99673158,29131.0,29129.0,0.00035324]
[1609547875639,0.99673158,29131.0,29130.0,0.00035324]
[1609547876138,0.99673158,29131.0,29129.0,0.00035324]
[1609547876338,0.99673158,29131.0,29130.0,0.00035324]
[1609547876739,0.99673158,29131.0,29129.0,0.00035324]
[1609547876940,0.99673158,29131.0,29130.0,0.00035324]
[1609547877440,0.99673158,29131.0,29129.0,0.00035326]
[1609547877639,0.99673158,29131.0,29130.0,0.00035326]
[1609547877941,0.99673158,29131.0,29129.0,0.00035326]
[1609547878240,0.99673158,29131.0,29130.0,0.00035326]
[1609547878742,0.99714938,29131.0,29129.0,0.00035326]
[1609547879142,0.99714938,29131.0,29130.0,0.00035326]
[1609547879343,0.99673158,29131.0,29130.0,0.00035326]
[1609547879543,0.99714939,29131.0,29129.0,0.00035326]
[1609547879743,0.99714939,29131.0,29130.0,0.00035326]
[1609547880044,0.99714939,29131.0,29129.0,0.00035326]
[1609547880343,0.99714939,29131.0,29130.0,0.00035326]
[1609547880745,0.99673158,29131.0,29130.0,0.00035326]
[1609547880944,0.99714939,29131.0,29129.0,0.00035326]
[1609547881143,0.18084939,29131.0,29130.0,0.00035326]
[1609547881343,0.18043158,29131.0,29128.0,0.18043158]
[1609547881745,0.18043158,29131.0,29129.0,0.00035324]
[1609547885350,0.18043158,29131.0,29129.0,0.03294239]
[1609547886448,0.18043158,29131.0,29129.0,0.00035324]
[1609547886650,0.18043158,29131.0,29130.0,0.00035321]
[1609547887149,0.18043158,29131.0,29129.0,0.00035321]
[1609547887451,0.18043158,29131.0,29130.0,0.00035321]
[1609547887952,0.18043158,29131.0,29129.0,0.00035321]
[1609547888353,0.18043158,29131.0,29130.0,0.00035321]
[1609547888754,0.18043158,29131.0,29128.0,0.03294252]
[1609547888953,0.18043158,29131.0,29130.0,0.00035323]
[1609547889353,0.18043158,29131.0,29128.0,0.00035323]